[Event "European Women-ch 2023"]
[Site "Petrovac"]
[Date "2023.03.25"]
[Round "7.1"]
[White "Socko, Monika"]
[Black "Kiolbasa, Oliwia"]
[Result "1/2-1/2"]
[Annotator "TA"]
[ECO "E05"]
[WhiteElo "2432"]
[BlackElo "2406"]
[PlyCount "146"]
[EventDate "2023.03.15"]
[EventType "swiss"]
[EventCountry "MNE"]
[SourceTitle "playchess.com"]
[Source "ChessBase"]
[SourceQuality "1"]
[TimeControl "40/5400+30:1800+30"]

{[%evp 18,146,12,10,13,8,11,0,29,17,39,23,35,26,29,28,28,17,32,26,34,46,54,54,49,49,69,62,85,67,61,72,62,70,67,63,68,0,0,0,0,0,5,4,13,13,15,12,61,39,35,34,55,13,24,8,8,0,16,0,57,31,56,31,56,58,56,32,83,8,8,4,19,14,8,8,31,19,25,19,69,70,85,85,90,66,80,0,1,0,67,11,14,0,0,0,0,0,0,0,0,-54,-56,-97,0,0,0,0,0,0,0,0,0,0,0,0,0,0,0,0,0,0,0,0,0,0,0,0,0,0,0]} 1. d4 {[%emt 0:00:05]} d5 {[%emt 0:00:11]} 2. c4 {[%emt 0:00:04]} e6 {[%emt 0:00:09]} 3. Nf3 {[%emt 0:00:05]} Nf6 {[%emt 0:00:15]} 4. g3 {[%emt 0:00:05]} Be7 {[%emt 0:00:24]} 5. Bg2 {[%emt 0:00:19]} O-O {[%emt 0:00:25]} 6. O-O {[%emt 0:00:04]} dxc4 {[%emt 0:00:45]} 7. Qc2 {[%emt 0:00:05]} a6 {[%emt 0:00:53]} 8. a4 {[%emt 0:00:05]} Bd7 {[%emt 0:01:11]} 9. Qxc4 {[%emt 0:00:16]} Bc6 {[%emt 0:00:09]} 10. Bf4 {[%emt 0:00:49]} h6 {[%emt 0:09:17] E05: Open Catalan: 5 Nf3 Be7.} 11. Rd1 {[%emt 0:04:40]} Bd6 {[%emt 0:11:09]} 12. Qc1 {[%emt 0:01:30] [#]} Bxf4 $146 {[%emt 0:06:25]} ({Predecessor:} 12... Nbd7 13. Nc3 Nd5 14. Bd2 N7f6 15. Ne1 Qe8 16. a5 Rd8 17. Nd3 Nxc3 18. Bxc3 Bxg2 19. Kxg2 {½-½ Duda,J (2731)-Giri,A (2764) Aimchess Rapid Prelim 2022 (1)}) 13. Qxf4 {[%emt 0:00:38]} a5 {[%emt 0:00:07]} 14. Nc3 {[%emt 0:06:59]} Bxf3 {[%emt 0:17:09]} 15. Bxf3 {[%emt 0:03:22]} c6 {[%emt 0:08:22]} 16. e4 {[%emt 0:03:12]} Qb6 {[%emt 0:00:11]} 17. Rd2 {[%emt 0:08:32]} Na6 {[%emt 0:02:37]} 18. Rad1 {[%emt 0:01:50]} Nb4 {[%emt 0:07:16]} 19. h4 {[%emt 0:01:47]} Qd8 {[%emt 0:07:16]} 20. d5 {[%emt 0:07:39]} exd5 {[%emt 0:00:12]} 21. exd5 {[%emt 0:00:05]} Nfxd5 {[%emt 0:01:59]} 22. Nxd5 {[%emt 0:01:37]} cxd5 {[%emt 0:00:20]} 23. Bxd5 {[%emt 0:00:21]} Nxd5 {[%emt 0:02:00]} 24. Rxd5 {[%emt 0:00:06]} Qe7 {[%emt 0:00:12]} 25. Rd7 {[%emt 0:08:29]} Qe2 {[%emt 0:00:30]} 26. Qd2 {[%emt 0:07:11]} Qc4 {[%emt 0:11:19]} 27. Rc1 {[%emt 0:11:05]} (27. Qd4 $14 Qc6 28. b3) 27... Qxa4 $11 {[%emt 0:01:13]} 28. Qd5 {[%emt 0:00:50]} Rae8 {[%emt 0:05:28]} 29. b3 {[%emt 0:10:11]} Qe4 {[%emt 0:01:25]} 30. Qxa5 {[%emt 0:02:02]} Qf3 {[%emt 0:01:56]} 31. Qc3 {[%emt 0:00:10]} (31. Qd5 {simplifies} Qxd5 32. Rxd5 Re7 33. Kg2) 31... Qe4 {[%emt 0:00:52]} 32. Rcd1 {[%emt 0:04:10]} Rc8 {[%emt 0:00:30]} (32... b6 $11) 33. Qd3 {[%emt 0:03:27]} (33. Qd4 $5 {[%cal Rd4e4]} Qc2 34. Qd3 $14 (34. Rxb7 Rb8 $11)) 33... Qb4 {[%emt 0:01:03]} 34. Qf3 {[%emt 0:03:55]} b6 {[%emt 0:00:46]} 35. Rb7 {[%emt 0:03:22]} Rb8 {[%emt 0:02:55]} 36. Ra7 {[%emt 0:02:02]} Rbc8 $1 {[%emt 0:00:35]} 37. Rb7 {[%emt 0:04:56]} Rb8 {[%emt 0:00:04]} 38. Rbd7 {[%emt 0:00:39]} Rbc8 $1 {[%emt 0:00:04]} 39. R7d4 {[%emt 0:00:43]} (39. Kg2 {is more complex.} Qc3 40. R1d3 Qe1 41. Re3) 39... Qa3 {[%emt 0:01:23]} 40. Kg2 {[%emt 0:00:00]} Rc1 {[%emt 0:00:00]} 41. Rxc1 {[%emt 0:07:49]} Qxc1 $14 {[%emt 0:01:23][%mdl 4096] Endgame KQR-KQR} 42. Rc4 {[%emt 0:02:37] Wards off Qc7} Qe1 {[%emt 0:11:04] [#]} (42... Qd2 $14) 43. Qd5 {[%emt 0:04:54]} (43. Qc6 $1 $16) 43... Re8 $11 {[%emt 0:04:20]} 44. Rc6 {[%emt 0:00:53]} Qb4 {[%emt 0:03:40]} 45. Qf3 {[%emt 0:01:27]} Qd4 {[%emt 0:01:24]} 46. Rc7 $36 {[%emt 0:01:13][%mdl 2048] White has good play.} Rf8 {[%emt 0:00:33]} 47. Rb7 {[%emt 0:02:03]} Qc5 {[%emt 0:00:33] Prevents Qc6.} 48. Rd7 {[%emt 0:01:56]} Qe5 {[%emt 0:01:42]} (48... Qb4 $11) 49. Qc6 $14 {[%emt 0:01:51]} Rb8 {[%emt 0:03:06]} 50. b4 {[%emt 0:01:09]} Qf5 {[%emt 0:00:40]} 51. Rd4 {[%emt 0:02:01]} b5 {[%emt 0:02:27]} 52. Rd7 {[%emt 0:03:18]} (52. Qe4 $16 Qc8 53. Rd5) 52... Re8 $11 {[%emt 0:01:43]} 53. Rd4 {[%emt 0:02:48]} Re7 {[%emt 0:03:21]} (53... Rb8 $11) 54. Rd8+ {[%emt 0:02:42]} ({White should try} 54. Qf3 $14 Qxf3+ 55. Kxf3) 54... Kh7 {[%emt 0:00:05]} 55. Rb8 {[%emt 0:00:53]} (55. Qf3 {simplifies} Qxf3+ 56. Kxf3 Re5 57. Rd6) 55... Re5 {[%emt 0:00:43]} 56. Rb7 {[%emt 0:00:56]} Rd5 {[%emt 0:00:51]} 57. Qc3 {[%emt 0:00:20]} Rd3 {[%emt 0:00:36]} 58. Qc6 {[%emt 0:00:20] Prevents Qf3+. Active counter play!} Rd5 {[%emt 0:00:17]} 59. Qe8 {[%emt 0:02:16]} (59. Qc3 $11) 59... Rd2 $15 {[%emt 0:00:47]} 60. Qe3 {[%emt 0:00:11]} Rd1 {[%emt 0:00:27]} (60... Rd3 $17 61. Qf4 Qd5+ 62. f3 Rd2+ 63. Kh3 Qxb7 64. Qxd2 Qxf3 65. Qc2+ g6) 61. Re7 $1 $11 {[%emt 0:00:38] The position is equal.} Qd5+ {[%emt 0:00:57]} 62. Qe4+ {[%emt 0:00:01]} Qxe4+ {[%emt 0:00:05]} 63. Rxe4 {KR-KR} Rb1 {[%emt 0:00:06]} 64. Kf3 {[%emt 0:00:26]} Kg6 {[%emt 0:00:26]} 65. g4 {[%emt 0:00:35]} f5 {[%emt 0:01:27]} 66. Rd4 {[%emt 0:00:34]} fxg4+ {[%emt 0:00:32]} 67. Rxg4+ {[%emt 0:01:10]} Kf6 {[%emt 0:00:09]} 68. Rf4+ {[%emt 0:00:17]} Ke5 {[%emt 0:00:16]} 69. Re4+ {[%emt 0:00:07]} Kd5 {[%emt 0:01:22] [#] White must now prevent ...Rb3+.} 70. Rg4 {[%emt 0:00:13]} Rb3+ {[%emt 0:00:32]} 71. Kg2 {[%emt 0:00:06]} Ke5 {[%emt 0:00:17]} 72. f3 {[%emt 0:01:20]} Kf5 {[%emt 0:00:30]} 73. Rd4 {[%emt 0:00:26]} Ke5 {[%emt 0:00:14] Weighted Error Value: White=0.16 (very precise) /Black=0.12 (very precise)} 1/2-1/2

[Event "European Women-ch 2023"]
[Site "Petrovac"]
[Date "2023.03.25"]
[Round "7.1"]
[White "Fataliyeva, Ulviyya"]
[Black "Koljevic, Nikolina"]
[Result "1-0"]
[Annotator "TA"]
[ECO "A30"]
[WhiteElo "2427"]
[BlackElo "2042"]
[PlyCount "67"]
[EventDate "2023.03.15"]
[EventType "swiss"]
[EventCountry "MNE"]
[SourceTitle "playchess.com"]
[Source "ChessBase"]
[SourceQuality "1"]
[TimeControl "40/5400+30:1800+30"]

{[%evp 15,67,-6,35,-21,-25,-34,-28,-42,-45,-38,-18,-23,-6,-41,0,0,2,-3,18,0,77,0,75,82,153,153,202,195,174,149,170,191,297,302,365,374,448,443,641,633,845,825,714,528,564,554,525,535,785,774,1241,1152,1491,275]} 1. Nf3 {[%emt 0:00:02]} Nf6 {[%emt 0:00:17]} 2. b3 {[%emt 0:00:11]} e6 {[%emt 0:00:31]} 3. Bb2 {[%emt 0:00:10]} Be7 {[%emt 0:00:24]} 4. g3 {[%emt 0:00:07]} b6 {[%emt 0:00:55]} 5. Bg2 {[%emt 0:00:06]} Bb7 {[%emt 0:00:08]} 6. O-O {[%emt 0:00:08]} c5 {[%emt 0:00:41]} 7. c4 {[%emt 0:00:22]} O-O {[%emt 0:00:51]} 8. e3 {[%emt 0:00:18]} d6 {[%emt 0:03:34] [#]} 9. Ne1 $146 {[%emt 0:00:37] A30: Symmetrical English: Double Fianchetto and Hedgehog.} (9. d4 $14) ({Predecessor:} 9. Qe2 Nbd7 10. Nc3 a6 11. Rfd1 Qc7 12. Rac1 Rac8 13. d3 Rfd8 14. h3 Qb8 15. g4 Qa8 16. e4 Nb8 17. Qe3 Nc6 18. d4 cxd4 19. Nxd4 Nd7 20. Nde2 {1-0 Iturrizaga Bonelli,E (2597)-Abdusattorov,N (2635) Wch Blitz Moscow 2019 (19)}) 9... Bxg2 $11 {[%emt 0:02:22]} 10. Nxg2 {[%emt 0:00:05]} Nc6 {[%emt 0:01:12]} 11. f4 {[%emt 0:00:16] Black has an edge.} d5 {[%emt 0:03:06]} 12. Qe2 {[%emt 0:02:35]} dxc4 {[%emt 0:13:44]} 13. bxc4 {[%emt 0:00:29]} Nb4 {[%emt 0:00:07] White should prevent ...Nc2.} 14. d4 {[%emt 0:02:12][%cal Bd2d4,Bd4d5][%mdl 32]} Ne4 {[%emt 0:09:46]} 15. Rd1 {[%emt 0:00:43]} Qc8 {[%emt 0:03:33]} 16. a3 {[%emt 0:00:18]} Na6 {[%emt 0:01:47]} (16... Nc6 $5 {[%cal Rc6a5]}) 17. d5 {[%emt 0:00:18]} f5 {[%emt 0:03:32] [#]} (17... exd5 $11 18. cxd5 c4) 18. Nc3 {[%emt 0:05:55]} (18. Nd2 $1 $16) 18... Nxc3 {[%emt 0:02:43]} (18... exd5 $11 19. cxd5 Nd6) 19. Bxc3 $16 {[%emt 0:00:05] Black is on the road to losing.} Rd8 {[%emt 0:00:10]} (19... exd5 $142 20. cxd5 Bd6) 20. e4 {[%emt 0:01:01][%cal Be3e4,Be4f5][%mdl 32] And now exf5 would win. White has more active pieces. The black rooks are badly placed.} Bf8 {[%emt 0:03:12]} (20... exd5 $16 {keeps fighting.} 21. Rxd5 Nc7) 21. exf5 $18 {[%emt 0:01:03]} exd5 {[%emt 0:00:55]} 22. cxd5 {[%emt 0:00:35] f6 would be deadly.} c4 {[%emt 0:04:37]} 23. f6 {[%emt 0:00:58] Threatens to win with fxg7.} (23. Qe6+ Qxe6 24. dxe6 (24. fxe6 Bc5+ 25. Bd4 Rxd5 $11) 24... Nc7) 23... Re8 {[%emt 0:05:48]} (23... Nc7 {is a better defense.}) 24. Qh5 {[%emt 0:00:38] aiming for f7+.} ({Weaker is} 24. f7+ Kxf7 25. Be5 (25. Qh5+ Kg8 $14) 25... b5 $16) 24... gxf6 {[%emt 0:01:49]} 25. Bxf6 {[%emt 0:00:30]} Qc5+ {[%emt 0:00:50]} 26. Bd4 {[%emt 0:02:25] Intending Qg5+ and mate. White is clearly winning.} ({But not} 26. Kh1 Bg7 $18) 26... Qd6 {[%emt 0:00:26]} (26... Qe7 $142 27. Qg4+ Bg7) 27. Nh4 {[%emt 0:00:28]} Rad8 {[%emt 0:03:36]} 28. Qg5+ {[%emt 0:02:44]} Kf7 {[%emt 0:00:15]} 29. Nf3 {[%emt 0:00:07]} Qg6 {[%emt 0:06:19]} 30. Ne5+ {[%emt 0:01:20][%mdl 64] [#] Deflection} Rxe5 {[%emt 0:00:06]} 31. Qxd8 {[%emt 0:00:24]} Re2 {[%emt 0:01:41]} 32. Re1 {[%emt 0:02:48]} Qe4 {[%emt 0:00:59]} 33. Qf6+ {[%emt 0:00:18]} Kg8 {[%emt 0:00:31]} 34. Qe6+ $2 {[%emt 0:00:57] A superb game by Fataliyeva.   Weighted Error Value: White=0.31/Black=0.57} (34. Rxe2 Qxe2 35. d6) 1-0

[Event "European Women-ch 2023"]
[Site "Petrovac"]
[Date "2023.03.25"]
[Round "7.1"]
[White "Bivol, Alina"]
[Black "Chelushkina, Irina"]
[Result "1-0"]
[Annotator "TA"]
[ECO "B31"]
[WhiteElo "2365"]
[BlackElo "2207"]
[PlyCount "55"]
[EventDate "2023.03.15"]
[EventType "swiss"]
[EventCountry "MNE"]
[SourceTitle "playchess.com"]
[Source "ChessBase"]
[SourceQuality "1"]
[TimeControl "40/5400+30:1800+30"]

{[%evp 21,55,35,35,14,43,0,0,-6,-14,0,40,46,36,46,67,44,80,81,127,108,102,112,121,123,311,317,300,281,326,321,309,302,427,424,941,937]} 1. e4 {[%emt 0:00:05]} c5 {[%emt 0:00:11]} 2. Nf3 {[%emt 0:00:08]} Nc6 {[%emt 0:00:16]} 3. Bb5 {[%emt 0:00:07]} g6 {[%emt 0:00:07]} 4. O-O {[%emt 0:00:56]} Bg7 {[%emt 0:00:04]} 5. c3 {[%emt 0:00:13]} e5 {[%emt 0:02:59]} 6. d4 {[%emt 0:00:33]} cxd4 {[%emt 0:00:37]} 7. cxd4 {[%emt 0:00:06]} exd4 {[%emt 0:01:50]} 8. Bf4 {[%emt 0:00:40]} Nge7 {[%emt 0:01:25]} 9. Bd6 {[%emt 0:00:43]} O-O {[%emt 0:04:15]} 10. Nbd2 {[%emt 0:05:38]} a6 {[%emt 0:02:08] 10...b6 is the fancy move.} 11. Bc4 {[%emt 0:07:44]} b5 {[%emt 0:00:12]} 12. Bd5 {[%emt 0:00:34] B31: Sicilian: 2...Nc6 3 Bb5 g6.} Bb7 {[%emt 0:03:19][%cal Oe7d5]} (12... Nxd5 $5 13. Bxf8 (13. exd5 Ne7 $14) 13... Ne3 14. fxe3 Qxf8 $11) 13. Nb3 {[%emt 0:08:40]} (13. Re1 $14 {feels stronger.}) 13... Nxd5 $1 $11 {[%emt 0:02:37]} 14. Bxf8 {[%emt 0:01:20] The position is equal.} Qxf8 {[%emt 0:00:09]} 15. exd5 {[%emt 0:00:04]} Nb4 {[%emt 0:00:03]} 16. a3 {[%emt 0:00:24]} Nxd5 {[%emt 0:00:35]} 17. Na5 $1 {[%emt 0:00:58] [#]} Bc8 $146 {[%emt 0:04:01]} ({Predecessor:} 17... Qb8 18. Qd2 Nb6 19. Nxb7 Qxb7 20. Nxd4 Nc4 21. Qc3 Rc8 22. Rad1 d5 23. Rfe1 a5 {1-0 Vignesh,N (2490)-Viers,E (2123) Noisiel op 8th 2023 (1)}) 18. Re1 {[%emt 0:15:54]} Nf4 {[%emt 0:02:56]} 19. Nxd4 {[%emt 0:07:07] Hoping for Qf3.} Ne6 {[%emt 0:00:05]} (19... d5 $142) 20. Qf3 {[%emt 0:07:16] White is more active.} Rb8 {[%emt 0:18:12]} 21. Nxe6 {[%emt 0:00:29]} fxe6 {[%emt 0:00:10]} 22. Qg3 {[%emt 0:05:44]} d6 $2 {[%emt 0:02:34] [#] Black cannot hold the game after this.} (22... Bb7 $16 {keeps fighting.}) 23. Rad1 $18 {[%emt 0:03:54]} e5 {[%emt 0:12:11]} 24. Qd3 {[%emt 0:04:38]} Rb6 {[%emt 0:08:53]} 25. Qd5+ {[%emt 0:00:51]} Kh8 {[%emt 0:00:50]} 26. Rc1 {[%emt 0:05:57][%cal Bd1c1,Bc1c7,Bc7d7][%mdl 32]} Bd7 {[%emt 0:04:56]} (26... Bf5 $142 27. Rc7 Qg8) 27. Rc7 {[%emt 0:00:34]} Qe8 {[%emt 0:00:26] [#]} (27... Bf5 $142 28. Nc6 Qf6) 28. Rxd7 $1 {[%emt 0:00:57][%mdl 576] Deflection, Back Rank.   Weighted Error Value: White=0.10 (very precise) /Black=0.41} 1-0

[Event "European Women-ch 2023"]
[Site "Petrovac"]
[Date "2023.03.25"]
[Round "7.2"]
[White "Osmak, Yuliia"]
[Black "Narva, Mai"]
[Result "1-0"]
[Annotator "TA"]
[ECO "A70"]
[WhiteElo "2445"]
[BlackElo "2389"]
[PlyCount "89"]
[EventDate "2023.03.15"]
[EventType "swiss"]
[EventCountry "MNE"]
[SourceTitle "playchess.com"]
[Source "ChessBase"]
[SourceQuality "1"]
[TimeControl "40/5400+30:1800+30"]

{[%evp 23,89,20,45,25,27,29,78,52,88,66,76,86,108,89,103,91,93,95,179,166,159,141,200,192,224,224,293,289,299,291,286,274,292,285,272,268,324,311,314,317,319,321,309,308,449,446,421,383,481,470,500,500,500,500,486,488,466,437,554,549,547,547,601,615,599,589,615,607]} 1. d4 {[%emt 0:01:31]} Nf6 {[%emt 0:00:10]} 2. c4 {[%emt 0:00:04]} e6 {[%emt 0:00:11]} 3. Nf3 {[%emt 0:00:04]} c5 {[%emt 0:00:24]} 4. d5 {[%emt 0:00:13]} d6 {[%emt 0:00:30]} 5. Nc3 {[%emt 0:00:33]} exd5 {[%emt 0:00:19]} 6. cxd5 {[%emt 0:00:12]} g6 {[%emt 0:00:15]} 7. e4 {[%emt 0:05:44]} Bg7 {[%emt 0:00:20]} 8. Be2 {[%emt 0:00:27]} a6 {[%emt 0:00:42]} 9. a4 {[%emt 0:00:17]} Bg4 {[%emt 0:00:50]} 10. Be3 {[%emt 0:00:18]} Bxf3 {[%emt 0:13:51]} 11. Bxf3 {[%emt 0:00:24]} Nbd7 {[%emt 0:00:52]} 12. O-O {[%emt 0:00:37]} O-O {[%emt 0:00:45]} 13. Be2 {[%emt 0:15:04] A70: Modern Benoni: 6 e4 g6 7 Nf3.} Re8 {[%emt 0:09:02]} 14. Qc2 {[%emt 0:00:16] [#]} b6 $146 {[%emt 0:06:47]} (14... Qa5 $11) ({Predecessor:} 14... Qc7 15. Rfe1 c4 16. Rab1 Rab8 17. b3 b5 18. axb5 axb5 19. bxc4 bxc4 20. f3 Ne5 {1-0 Galperin,P (2518)-Assaubayeva,B (2439) Junior Speed Qual 3 blitz 2022 (1.11)}) 15. Rfe1 {[%emt 0:05:11] White is more active. White is better.} Qc7 {[%emt 0:06:01]} 16. b3 {[%emt 0:06:20]} Re7 {[%emt 0:14:30]} 17. Rab1 {[%emt 0:07:18]} h6 {[%emt 0:14:38]} 18. h3 {[%emt 0:06:51]} Nh7 {[%emt 0:01:17]} 19. Bd3 {[%emt 0:08:33]} Ne5 {[%emt 0:09:20] [#]} 20. Bf1 $1 {[%emt 0:00:57]} c4 {[%emt 0:04:48]} (20... Ree8 $16 {keeps fighting.}) 21. Rec1 $18 {[%emt 0:11:41]} Rc8 {[%emt 0:05:12]} 22. Na2 {[%emt 0:05:51][%cal Rb3c4]} b5 {[%emt 0:02:20]} (22... Ree8 $16 23. bxc4 Nd7) 23. Nb4 {[%emt 0:08:20]} (23. f4 $6 Nd3 $16) 23... Qa5 {[%emt 0:06:52]} 24. bxc4 {[%emt 0:00:48] Threatens to win with Qd1.} Qxa4 {[%emt 0:01:59]} 25. Qxa4 {[%emt 0:06:01]} bxa4 {[%emt 0:00:05]} 26. c5 {[%emt 0:00:19]} ({Don't do} 26. Nxa6 Nd7 27. c5 Nxc5 $18) 26... dxc5 {[%emt 0:00:37]} 27. Bxc5 {[%emt 0:02:39]} Ree8 {[%emt 0:00:28]} 28. Bxa6 {[%emt 0:00:57][%cal Bf1a6,Ba6b7,Bb7c6][%mdl 32]} Ra8 {[%emt 0:00:33]} 29. Bb7 {[%emt 0:03:43] A strong pair of Bishops.} Rab8 {[%emt 0:00:12]} 30. Nc6 {[%emt 0:02:06]} Nd3 {[%emt 0:01:07]} 31. Nxb8 {[%emt 0:00:39]} Nxc1 {[%emt 0:00:17]} 32. Rxc1 {[%emt 0:01:04]} Rxb8 {[%emt 0:00:07]} 33. Bc6 {[%emt 0:00:13]} f5 {[%emt 0:01:05]} (33... Ng5 $142 34. f3 (34. Bxa4 Nxe4 35. d6 Bb2 $16) 34... Bb2) 34. exf5 {[%emt 0:00:30]} ({Much less strong is} 34. Bxa4 Nf8 35. Bd6 Ra8) 34... gxf5 {[%emt 0:00:15]} 35. Bxa4 {[%emt 0:00:06]} Rd8 {[%emt 0:00:46]} 36. Bb6 {[%emt 0:00:53] White is clearly winning.} Rb8 {[%emt 0:00:29]} 37. Bc7 {[%emt 0:00:36]} Rb4 {[%emt 0:00:08]} 38. Bd7 {[%emt 0:00:36]} Nf8 {[%emt 0:00:38]} 39. Bxf5 {[%emt 0:00:19]} Rd4 {[%emt 0:00:18]} 40. d6 {[%emt 0:00:00]} Kf7 {[%emt 0:00:00]} 41. Re1 {[%emt 0:04:46] [#] Re7+ is the strong threat.} Bf6 {[%emt 0:01:29] Prevents Re7+} 42. Bg4 {[%emt 0:00:31]} Rd5 {[%emt 0:02:34]} 43. Rd1 {[%emt 0:05:16]} Rc5 {[%emt 0:00:25]} 44. Bb6 {[%emt 0:00:36]} Rc6 {[%emt 0:00:33]} 45. Be3 {[%emt 0:00:23] Black got outplayed after the opening.   Weighted Error Value: White=0.06 (flawless) /Black=0.30} 1-0

[Event "European Women-ch 2023"]
[Site "Petrovac"]
[Date "2023.03.25"]
[Round "7.2"]
[White "Gaponenko, Inna"]
[Black "Jarocka, Liwia"]
[Result "1/2-1/2"]
[Annotator "TA"]
[ECO "B12"]
[WhiteElo "2349"]
[BlackElo "2181"]
[PlyCount "83"]
[EventDate "2023.03.15"]
[EventType "swiss"]
[EventCountry "MNE"]
[SourceTitle "playchess.com"]
[Source "ChessBase"]
[SourceQuality "1"]
[TimeControl "40/5400+30:1800+30"]

{[%evp 12,83,11,12,19,0,0,0,0,0,5,-5,7,0,23,15,23,12,9,8,9,4,44,0,0,0,0,0,0,0,0,0,0,0,31,20,64,66,65,50,71,35,35,35,35,35,48,0,0,0,0,0,29,0,35,35,35,35,35,35,35,0,35,0,0,0,35,35,35,35,35,0,35,0]} 1. e4 {[%emt 0:00:03]} c6 {[%emt 0:00:07]} 2. d4 {[%emt 0:00:12]} d5 {[%emt 0:00:10]} 3. e5 {[%emt 0:00:09]} Bf5 {[%emt 0:00:33]} 4. h4 {[%emt 0:04:04]} h5 {[%emt 0:00:22]} 5. Bd3 {[%emt 0:00:06]} Bxd3 {[%emt 0:00:11]} 6. Qxd3 {[%emt 0:00:01]} e6 {[%emt 0:00:17]} 7. Nf3 {[%emt 0:15:37]} Qa5+ {[%emt 0:00:58] B12: Caro-Kann: Advance Variation.} 8. Nbd2 {[%emt 0:00:05]} Qa6 {[%emt 0:00:24]} 9. c4 {[%emt 0:00:16]} Ne7 {[%emt 0:01:41] The position is equal.} 10. O-O {[%emt 0:09:00]} Nd7 {[%emt 0:01:18]} 11. b3 {[%emt 0:28:38][%cal Bb2b3,Bb3b4,Bb4c5][%mdl 32]} Nf5 {[%emt 0:03:51]} 12. a4 {[%emt 0:16:55]} Rc8 {[%emt 0:14:30]} 13. Qc2 {[%emt 0:14:36] [#] And now cxd5 would win.} b6 {[%emt 0:06:14] [#]} 14. Ba3 $146 {[%emt 0:01:26]} ({Predecessor:} 14. Bb2 Be7 15. g3 O-O 16. Rfe1 Rfe8 17. a5 Qb7 18. a6 Qa8 19. cxd5 cxd5 20. Qd3 {1-0 Ponkratov,P (2613)-Saric,I (2669) EU-ch rapid Katowice 2017 (11)}) 14... Bxa3 {[%emt 0:01:00]} 15. Rxa3 {[%emt 0:00:01]} O-O {[%emt 0:03:52]} 16. b4 {[%emt 0:00:27]} g6 {[%emt 0:05:55]} 17. c5 {[%emt 0:05:41]} bxc5 {[%emt 0:01:11]} 18. bxc5 {[%emt 0:00:32]} Rb8 {[%emt 0:00:28]} 19. Rb1 {[%emt 0:00:15]} Rxb1+ {[%emt 0:01:14]} 20. Qxb1 {[%emt 0:00:13]} Rb8 {[%emt 0:00:12]} 21. Rb3 {[%emt 0:00:16]} Rxb3 {[%emt 0:00:48]} 22. Qxb3 {[%emt 0:00:01]} Qc8 {[%emt 0:02:35]} 23. Nf1 {[%emt 0:02:19]} Qb8 {[%emt 0:00:16]} 24. Qxb8+ {[%emt 0:00:28]} Nxb8 $14 {[%emt 0:00:04][%mdl 4096] Endgame KNN-KNN} 25. Ne3 {[%emt 0:00:08]} Kf8 {[%emt 0:03:02]} 26. Nxf5 {[%emt 0:00:30]} exf5 $16 {[%emt 0:00:05] KN-KN} 27. Kf1 {[%emt 0:00:04]} Ke7 {[%emt 0:00:07]} 28. Ke2 {[%emt 0:00:15]} Na6 {[%emt 0:02:39]} 29. Kd3 {[%emt 0:01:46]} (29. Ke3 $14) 29... Nc7 $11 {[%emt 0:00:08]} 30. g3 {[%emt 0:00:42]} Ne6 {[%emt 0:01:13]} 31. Ke3 {[%emt 0:00:19]} Kd7 {[%emt 0:01:01]} 32. Nd2 {[%emt 0:00:49]} Kc7 {[%emt 0:02:02][%cal Of5f4]} 33. f4 {[%emt 0:00:20]} Kb7 {[%emt 0:00:36]} 34. Kd3 {[%emt 0:00:21]} Kc7 {[%emt 0:02:44]} 35. Kc3 {[%emt 0:00:14]} Kb7 {[%emt 0:00:13]} 36. Nf3 {[%emt 0:00:23]} Kc8 {[%emt 0:03:26]} 37. Kb4 {[%emt 0:00:07]} Kc7 {[%emt 0:00:41]} 38. Kc3 {[%emt 0:00:28]} Kc8 {[%emt 0:00:18]} 39. Ne1 {[%emt 0:00:55]} Kc7 {[%emt 0:01:31]} 40. Nc2 {[%emt 0:00:00]} Kc8 {[%emt 0:00:00]} 41. Ne1 {[%emt 0:01:39]} Kc7 {[%emt 0:01:39]} 42. Nf3 {[%emt 0:03:14] Weighted Error Value: White=0.10 (very precise) /Black=0.07 (flawless)} 1/2-1/2

[Event "European Women-ch 2023"]
[Site "Petrovac"]
[Date "2023.03.25"]
[Round "7.2"]
[White "Vidic, Teja"]
[Black "Zhapova, Yana"]
[Result "1/2-1/2"]
[Annotator "TA"]
[ECO "C45"]
[WhiteElo "2097"]
[BlackElo "2269"]
[PlyCount "32"]
[EventDate "2023.03.15"]
[EventType "swiss"]
[EventCountry "MNE"]
[SourceTitle "playchess.com"]
[Source "ChessBase"]
[SourceQuality "1"]
[TimeControl "40/5400+30:1800+30"]

{[%evp 17,32,0,-2,0,19,-7,0,-11,-8,0,4,0,0,0,33,36,37]} 1. e4 {[%emt 0:00:03]} e5 {[%emt 0:00:15]} 2. Nf3 {[%emt 0:00:05]} Nc6 {[%emt 0:00:10]} 3. d4 {[%emt 0:00:06]} exd4 {[%emt 0:00:18]} 4. Nxd4 {[%emt 0:00:08]} Nf6 {[%emt 0:00:11]} 5. Nxc6 {[%emt 0:00:10]} bxc6 {[%emt 0:00:08]} 6. Bd3 {[%emt 0:00:06]} d5 {[%emt 0:03:02]} 7. exd5 {[%emt 0:00:06]} cxd5 {[%emt 0:00:26]} 8. O-O {[%emt 0:00:05]} Be7 {[%emt 0:01:05]} 9. c4 {[%emt 0:00:07]} O-O $1 {[%emt 0:02:59] 9...0-0 is better than 9...d4.} 10. Nc3 {[%emt 0:00:08] C45: Scotch Game.} Be6 {[%emt 0:01:46]} (10... d4 $5 {[%cal Rd4c3]} 11. Ne4 Ng4 $11) 11. Qe2 {[%emt 0:07:07]} c6 {[%emt 0:02:55]} 12. Bg5 {[%emt 0:04:12] The position is equal.} h6 {[%emt 0:05:26]} 13. Bh4 {[%emt 0:04:11]} Re8 {[%emt 0:05:29] [#]} 14. h3 $146 {[%emt 0:03:15]} ({Predecessor:} 14. Rad1 Bg4 15. Qc2 Bxd1 16. Nxd1 Ne4 17. Bxe7 Qxe7 18. Qc1 dxc4 19. Bxc4 Rad8 20. Ne3 {0-1 Bouzo Alvarez,J (2286)-Munoz Moreno,F (2291) Malaga City-ch 2003 (4.1)}) 14... dxc4 {[%emt 0:17:43]} 15. Bxc4 {[%emt 0:01:02]} Qd4 {[%emt 0:00:16]} 16. Bxe6 {[%emt 0:02:16] [#] Threatens to win with Qc4.} Qxh4 {[%emt 0:00:35] Weighted Error Value: White=0.07 (flawless) /Black=0.08 (flawless)} 1/2-1/2